bitfinex-derivatives/quotes_ETHF0:USTF0_20250217
["timestamp","ask_amount","ask_price","bid_price","bid_amount"]
[1739821441147,0.73754,2711.4,2711.2,3.2078]
[1739821441347,1.28835,2711.3,2711.2,3.2078]
[1739821441941,0.5508,2711.3,2711.2,3.94537]
[1739821442246,0.73754,2711.4,2711.2,3.94537]
[1739821442444,0.5568,2711.3,2711.2,3.94537]
[1739821442945,0.5568,2711.3,2711.2,3.2078]
[1739821443145,0.5568,2711.3,2711.2,3.94538]
[1739821443649,0.5568,2711.3,2711.2,3.2078]
[1739821443650,1.29435,2711.3,2711.2,3.2078]
[1739821444646,0.5568,2711.3,2711.2,3.94538]
[1739821444947,0.5568,2711.3,2711.2,0.73758]
[1739821445145,0.5568,2711.3,2710.9,0.0055373]
[1739821445146,1.29437,2711.3,2710.9,0.0055373]
[1739821445336,0.5568,2711.3,2710.9,0.0055373]
[1739821445539,0.5568,2711.3,2711.2,0.73758]
[1739821447247,1.29435,2711.3,2711.2,0.73758]
[1739821447948,0.5568,2711.3,2711.0,0.73763]
[1739821448146,0.7376,2711.2,2710.9,0.0055373]
[1739821448346,4.50216,2711.3,2710.9,0.0055373]
[1739821448547,3.7646,2711.3,2710.9,0.0055373]
[1739821448737,0.73763,2711.0,2710.9,0.0055373]
[1739821450241,0.5858,2711.1,2710.9,0.0055373]
[1739821450436,0.73763,2711.0,2710.9,0.0055373]
[1739821451141,0.5858,2711.1,2710.9,0.0055373]
[1739821451345,0.73763,2711.0,2710.9,0.0055373]
[1739821451651,1.32342,2711.1,2710.9,0.7431873]
[1739821451846,0.73763,2711.0,2710.9,0.0055373]
[1739821452047,0.73763,2711.0,2710.9,0.7431973]
[1739821452242,0.73763,2711.0,2710.9,0.0055373]
[1739821452748,1.32342,2711.1,2710.9,0.0055373]
[1739821453048,0.73763,2711.0,2710.9,0.0055373]
[1739821454441,0.73763,2711.0,2710.9,0.7431973]
[1739821454747,0.5858,2711.1,2710.9,0.7431973]
[1739821454748,0.5858,2711.1,2710.9,0.0055373]
[1739821455354,0.5858,2711.1,2711.0,0.73763]
[1739821455855,1.3234,2711.1,2711.0,0.73763]
[1739821456448,0.5858,2711.1,2711.0,0.73763]
[1739821456749,3.94528,2711.6,2711.4,0.73751]
[1739821456951,3.2078,2711.6,2711.1,1.84401]
[1739821457151,3.2078,2711.6,2711.5,0.73749]
[1739821457654,1.1346,2712.0,2711.7,0.73742]
[1739821457858,1.1346,2712.0,2711.8,0.73738]
[1739821458047,1.1346,2712.0,2711.9,0.73738]
[1739821458647,1.1346,2712.0,2711.6,0.5334]
[1739821458850,1.87198,2712.0,2711.6,0.5334]
[1739821459349,1.1346,2712.0,2711.8,0.7374]
[1739821460353,1.1346,2712.0,2711.9,0.73738]
[1739821460955,1.1346,2712.0,2711.6,0.5334]
[1739821461149,0.73739,2711.9,2711.7,0.73742]
[1739821462059,0.73742,2711.8,2711.6,0.73745]
[1739821462448,0.73739,2711.9,2711.7,0.73743]
[1739821462955,0.73738,2711.9,2711.7,0.73743]
[1739821463350,1.1346,2712.0,2711.3,5.05166]
[1739821463558,0.73741,2711.8,2711.7,0.73744]
[1739821463746,1.1346,2712.0,2711.8,0.73741]
[1739821463747,0.73739,2711.9,2711.8,0.73741]
[1739821463952,1.87198,2712.0,2711.8,0.73741]
[1739821464454,1.1346,2712.0,2711.8,0.73741]
[1739821464649,1.1346,2712.0,2711.9,0.73738]
[1739821464650,1.87197,2712.0,2711.9,0.73738]
[1739821465051,1.1346,2712.0,2711.5,1.84374]
[1739821465354,0.7374,2711.9,2711.8,0.7374]
[1739821465956,0.73742,2711.8,2711.7,0.73743]
[1739821466155,0.73743,2711.8,2711.7,0.73743]
[1739821466556,0.7374,2711.9,2711.8,0.73741]
[1739821466756,0.73738,2711.9,2711.8,0.73741]
[1739821467759,0.73743,2711.8,2711.7,0.73743]
[1739821468157,1.1346,2712.0,2711.4,1.8438]
[1739821468359,0.73739,2711.9,2711.8,0.73739]
[1739821468857,1.1346,2712.0,2711.4,1.8438]
[1739821469058,0.73742,2711.8,2711.7,0.73741]
[1739821469458,1.87196,2712.0,2711.9,0.73738]
[1739821469762,1.1346,2712.0,2711.6,1.84366]
[1739821469955,0.36960001,2712.2,2711.6,1.84366]
[1739821470261,0.37513731,2712.3,2712.2,0.7373]
[1739821470262,0.0055373,2712.3,2712.2,0.7373]
[1739821470761,0.7428173,2712.3,2712.2,0.7373]
[1739821471155,0.7428373,2712.3,2712.2,0.7373]
[1739821471659,0.7428173,2712.3,2712.2,0.7373]
[1739821472060,0.0055373,2712.3,2712.2,0.7373]
[1739821472764,0.7428173,2712.3,2712.2,0.7373]
[1739821473858,0.73731,2712.2,2712.1,0.73731]
[1739821474656,0.0055373,2712.3,2712.2,0.7373]
[1739821474861,0.7428173,2712.3,2712.2,0.7373]
[1739821475061,0.0055373,2712.3,2712.2,0.7373]
[1739821476056,0.7428173,2712.3,2712.2,0.7373]
[1739821476256,0.0055373,2712.3,2712.2,0.7373]
[1739821476650,0.0055373,2712.3,2712.1,0.73731]
[1739821476857,0.7428273,2712.3,2711.9,1.84347]
[1739821477057,0.7428273,2712.3,2712.2,0.7373]
[1739821477863,0.0055373,2712.3,2712.2,0.7373]
[1739821478364,0.7428173,2712.3,2712.2,0.7373]
[1739821479657,0.7373,2712.2,2712.1,0.7373]
[1739821479857,0.7428273,2712.3,2712.2,0.7373]
[1739821480360,0.0055373,2712.3,2711.9,1.84347]
[1739821480561,0.73731,2712.2,2712.1,0.73731]
[1739821480764,0.0055373,2712.3,2711.9,1.84347]
[1739821480957,0.0055373,2712.3,2712.2,0.7373]
[1739821482055,0.0055373,2712.3,2712.0,0.73734]
[1739821482056,0.73734,2712.1,2712.0,0.73734]
[1739821482259,0.73732,2712.2,2712.1,0.73732]
[1739821484161,0.73732,2712.2,2711.6,2.21912]
[1739821484162,0.73743,2711.8,2711.6,0.73746]
[1739821484361,1.1288,2711.7,2711.5,3.2078]
[1739821484664,0.73747,2711.6,2711.5,3.2078]
[1739821485560,4.97839254,2711.7,2711.5,3.2078]
[1739821485766,1.1288,2711.7,2711.6,0.73747]
[1739821486967,3.94519,2711.9,2711.5,3.2078]
[1739821487161,3.94519,2711.9,2711.7,0.73742]
[1739821487763,0.73741,2711.8,2711.7,0.73742]
[1739821488071,3.2078,2711.9,2711.5,3.2078]
[1739821488567,3.2078,2711.9,2711.7,0.73741]
[1739821488769,0.73744,2711.8,2711.6,0.73745]
[1739821488968,0.73747,2711.6,2711.5,3.2078]
[1739821489268,0.73745,2711.7,2711.5,3.94529]
[1739821489766,1.28127,2711.6,2711.5,3.2078]
[1739821489966,0.5438,2711.6,2711.0,4.3519]
[1739821490168,3.2078,2711.3,2710.9,0.0055373]
[1739821490364,0.73761,2711.1,2710.9,0.0055373]
[1739821490661,3.2078,2711.3,2710.9,0.0055373]
[1739821490866,0.7376,2711.2,2710.9,0.7431873]
[1739821491055,0.73761,2711.1,2710.9,0.7431873]
[1739821491260,0.5696,2711.1,2711.0,0.73763]
[1739821491460,0.5696,2711.1,2710.9,0.0055373]
[1739821491661,1.3072,2711.1,2711.0,0.73763]
[1739821492162,0.73763,2711.0,2710.9,0.0055373]
[1739821492861,3.94543,2711.0,2710.9,0.0055373]
[1739821494167,7.79502254,2711.0,2710.9,0.0055373]
[1739821494364,7.05739254,2711.0,2710.3,0.7378]
[1739821494671,0.73773,2710.7,2710.2,1.1357]
[1739821495065,0.73773,2710.7,2710.4,0.73777]
[1739821495267,0.5299,2710.6,2710.4,0.73777]
[1739821496167,0.5299,2710.6,2710.5,0.73777]
[1739821496568,0.5299,2710.6,2710.3,0.0055373]
[1739821496767,0.5299,2710.6,2710.5,0.73777]
[1739821499574,0.0055373,2710.8,2710.3,0.0055373]
[1739821499781,0.0055373,2710.8,2710.7,0.73771]
[1739821500281,0.0055373,2710.8,2710.4,1.84448]
[1739821500474,0.73772,2710.7,2710.6,0.73773]
[1739821500771,0.0055373,2710.8,2710.6,0.73773]
[1739821500977,0.0055373,2710.8,2710.7,0.73771]
[1739821501173,4.26892,2711.4,2710.8,1.84418]
[1739821501372,3.5314,2711.4,2711.1,0.73759]
[1739821501572,3.2078,2711.7,2710.9,3.7414]
[1739821501767,1.1404,2711.7,2711.5,0.73748]
[1739821501972,1.87786,2711.7,2711.5,0.73748]
[1739821502274,1.1404,2711.7,2711.4,0.73751]
[1739821502481,1.87786,2711.7,2711.5,0.73749]
[1739821502677,0.73747,2711.6,2711.4,0.7375]
[1739821502880,0.73749,2711.5,2710.9,5.58549]
[1739821503081,0.73752,2711.4,2711.2,0.73756]
[1739821503381,3.2078,2711.3,2710.6,3.2078]
[1739821503569,3.84959254,2710.8,2710.4,1.1243]
[1739821503879,0.5863,2710.7,2710.2,3.2078]
[1739821504082,1.30795,2710.6,2710.2,3.2078]
[1739821504272,0.5702,2710.6,2710.2,3.2078]
[1739821504473,0.5702,2710.6,2710.3,0.7433473]
[1739821504474,1.30795,2710.6,2710.3,0.7433473]
[1739821505075,0.5702,2710.6,2710.3,0.0055373]
[1739821505273,0.5702,2710.6,2710.5,0.73777]
[1739821505482,0.5863,2710.7,2710.6,0.73774]
[1739821505682,0.5838,2711.1,2711.0,0.73763]
[1739821505876,0.5761,2711.5,2711.4,0.73752]
[1739821506572,0.5838,2711.7,2711.6,0.73747]
[1739821507485,0.5838,2711.7,2711.4,3.2078]
[1739821507680,0.5838,2711.7,2711.5,0.73748]
[1739821507883,0.5838,2711.7,2711.2,1.1344]
[1739821507884,0.73749,2711.5,2711.3,0.73753]
[1739821508187,3.84959254,2711.4,2710.7,3.2078]
[1739821508486,0.73756,2711.3,2711.1,0.73759]
[1739821508879,0.5752,2711.2,2711.1,0.73759]
[1739821510385,0.5825,2711.6,2711.5,0.73749]
[1739821511581,0.5825,2711.6,2711.4,0.7375]
[1739821511781,1.31997,2711.6,2711.4,0.7375]
[1739821511984,1.31997,2711.6,2711.2,1.0886]
[1739821512180,0.5825,2711.6,2711.5,0.73749]
[1739821513787,0.5752,2711.7,2711.6,0.73747]
[1739821514187,0.0055373,2711.9,2711.8,0.73741]
[1739821516189,0.73745,2711.7,2711.3,3.2078]
[1739821516390,0.5681,2711.6,2711.5,0.73749]
[1739821517182,1.30557,2711.6,2711.5,0.73749]
[1739821517378,0.5681,2711.6,2711.5,0.73749]
[1739821517993,0.0055373,2711.9,2711.3,3.2078]
[1739821518294,0.5815,2711.8,2711.3,3.2078]
[1739821518683,0.73746,2711.7,2711.5,0.73748]
[1739821518888,0.73746,2711.7,2711.6,0.73747]
[1739821519694,0.73745,2711.7,2711.5,0.73747]
[1739821520096,0.73745,2711.7,2711.6,0.73747]
[1739821520396,3.2078,2711.7,2711.2,2.918]
[1739821520597,0.5815,2711.8,2711.0,3.2078]
[1739821520794,0.5815,2711.8,2711.7,0.73744]
[1739821523500,0.5815,2711.8,2711.4,1.093]
[1739821523801,0.5815,2711.8,2711.0,4.1232]
[1739821524006,0.7375,2711.5,2711.1,0.5331]
[1739821524203,0.5286,2711.4,2711.0,3.7474]
[1739821524502,1.32136,2711.3,2710.8,1.8442]
[1739821524708,1.32136,2711.3,2711.2,0.73758]
[1739821524906,0.5838,2711.3,2711.2,0.73758]
[1739821525409,0.5286,2711.4,2711.1,3.2078]
[1739821525701,0.5286,2711.4,2711.3,0.73755]
[1739821526702,0.73755,2711.3,2711.2,0.73756]
[1739821527203,0.73757,2711.3,2711.2,0.73757]
[1739821527402,0.5286,2711.4,2710.9,1.84414]
[1739821527607,0.5286,2711.4,2711.3,0.73755]
[1739821528610,1.26612,2711.4,2711.3,0.73755]
[1739821528813,0.5286,2711.4,2711.3,0.73755]
[1739821529009,1.26612,2711.4,2711.3,0.73755]
[1739821529413,0.5286,2711.4,2711.3,0.73755]
[1739821532406,0.5286,2711.4,2710.8,3.2078]
[1739821532606,0.5286,2711.4,2710.8,1.8442]
[1739821532607,1.30346,2711.3,2710.8,1.8442]
[1739821532914,0.7376,2711.1,2710.9,0.73764]
[1739821533104,3.85189184,2711.2,2710.4,0.3761]
[1739821533310,1.27935,2711.0,2710.8,0.73767]
[1739821533510,0.5677,2710.9,2710.8,0.73767]
[1739821533818,0.5677,2710.9,2710.5,1.84441]
[1739821533819,0.5677,2710.9,2710.5,5.05221]
[1739821534022,1.30537,2710.9,2710.8,0.73768]
[1739821534318,0.5677,2710.9,2710.8,0.73768]
[1739821534713,3.94534,2711.4,2711.2,0.73756]
[1739821535012,3.94534,2711.4,2711.1,0.73759]
[1739821535013,0.73756,2711.3,2711.1,0.73759]
[1739821535209,0.55,2711.2,2711.1,0.73759]
[1739821536014,0.5417,2711.3,2711.2,0.73758]
[1739821537314,4.39359184,2711.3,2710.8,3.2078]
[1739821537512,0.73762,2711.1,2710.9,0.73766]
[1739821537709,0.55,2711.0,2710.8,3.2078]
[1739821537915,0.73769,2710.8,2710.6,0.73772]
[1739821538115,4.40189184,2711.0,2710.9,0.73766]
[1739821538311,0.55,2711.0,2710.5,1.84442]
[1739821538516,0.55,2711.0,2710.8,0.73766]
[1739821539316,0.55,2711.0,2710.5,1.84442]
[1739821539518,0.7377,2710.8,2710.3,5.0578773]
[1739821539722,0.5591,2710.7,2710.6,0.73773]
[1739821539916,1.29682,2710.7,2710.6,0.73774]
[1739821540220,0.73774,2710.6,2710.3,3.2133373]
[1739821540422,4.41099184,2710.7,2710.3,3.2133373]
[1739821540620,0.73778,2710.5,2710.3,3.2133373]
[1739821540818,0.5742,2710.4,2710.3,3.9511573]
[1739821541125,0.5742,2710.4,2710.3,3.2133373]
[1739821541417,1.31199,2710.4,2710.3,3.2133373]
[1739821542013,8.37168184,2710.4,2710.3,0.0055373]
[1739821542525,0.73789,2710.1,2709.8,0.73795]
[1739821542723,0.5638,2710.0,2709.8,0.73795]
[1739821543223,3.7716,2710.0,2709.5,0.5561]
[1739821543419,0.73794,2709.9,2709.6,0.738]
[1739821543621,3.2078,2709.7,2709.5,0.0055373]
[1739821543920,0.5343,2709.8,2709.5,0.0055373]
[1739821544125,0.5693373,2710.0,2709.5,0.0055373]
[1739821544425,0.5693373,2710.0,2709.8,0.73794]
[1739821544622,0.5693373,2710.0,2709.9,0.73793]
[1739821544820,0.0055373,2710.0,2709.9,0.73793]
[1739821545021,0.5615,2710.7,2709.9,6.0]
[1739821545212,0.5615,2710.7,2710.6,0.73774]
[1739821545722,0.73764,2711.0,2710.4,3.2078]
[1739821545921,0.5615,2711.0,2710.8,0.73768]
[1739821546111,0.5615,2711.0,2710.5,4.40899184]
[1739821546314,0.5615,2711.0,2710.7,3.2078]
[1739821546515,0.5615,2711.0,2710.8,0.73767]
[1739821546711,0.73769,2710.8,2710.4,4.52178]
[1739821546923,0.5615,2711.0,2710.4,3.784]
[1739821546924,1.11,2711.0,2710.4,3.784]
[1739821547116,4.82837961,2710.9,2710.2,0.5571]
[1739821547317,4.82837961,2710.9,2710.1,3.2078]
[1739821547318,0.73778,2710.5,2710.1,3.94566]
[1739821547518,0.5447,2710.4,2710.1,3.94566]
[1739821547718,0.5447,2710.4,2710.2,0.73784]
[1739821547919,0.5447,2710.4,2710.3,0.73782]
[1739821548222,0.5447,2710.4,2710.1,3.2078]
[1739821548423,0.5447,2710.4,2710.1,3.94566]
[1739821548622,1.28251,2710.4,2710.1,0.73786]
[1739821548818,1.1029,2710.4,2710.1,0.73786]
[1739821549027,0.73785,2710.3,2709.9,0.73792]
[1739821549321,0.73788,2710.1,2709.8,3.2078]
[1739821549534,3.7748,2710.3,2709.8,3.2078]
[1739821549719,0.73789,2710.1,2709.8,3.2078]
[1739821550728,0.73793,2709.9,2709.8,3.2078]
[1739821551423,8.60317961,2710.3,2709.7,0.73798]
[1739821551620,3.7748,2710.3,2709.6,3.2078]
[1739821551928,0.73785,2710.2,2709.8,0.73793]
[1739821552125,3.2078,2710.3,2709.6,3.584]
[1739821552323,1.1029,2710.4,2709.9,3.2078]
[1739821552628,1.1029,2710.4,2710.3,0.73782]
[1739821553124,3.2078,2710.9,2710.2,3.2078]
[1739821553320,1.1452,2710.8,2710.5,0.73774]
[1739821553728,1.1452,2710.8,2710.3,0.7378]
[1739821553919,1.1452,2710.8,2710.1,0.3762]
[1739821554123,0.73782,2710.3,2710.0,1.1185]
[1739821554322,4.82837961,2710.5,2709.9,0.73791]
[1739821554528,0.73784,2710.3,2710.0,0.7379]
[1739821554729,0.5599,2710.2,2710.0,0.7379]
[1739821555025,1.1253,2710.2,2709.6,1.4673]
[1739821555223,1.1253,2710.2,2709.6,1.0909]
[1739821555521,0.7379,2710.1,2709.7,0.73796]
[1739821555726,1.1253,2710.2,2709.8,0.73795]
[1739821556317,0.73791,2710.0,2709.7,0.73797]
[1739821556723,5.95367961,2710.2,2709.5,0.0055373]
[1739821556922,5.95367961,2710.2,2709.6,0.73801]
[1739821557133,5.95367961,2710.2,2709.5,0.0055373]
[1739821557317,0.73795,2709.9,2709.6,0.738]
[1739821557919,5.95367961,2710.2,2709.5,0.0055373]
[1739821558230,0.73801,2709.7,2709.5,0.0055373]
[1739821558528,1.1154,2709.6,2709.5,0.0055373]
[1739821558732,1.1154,2709.6,2709.5,0.7435773]
[1739821558933,1.1154,2709.6,2709.5,0.0055373]
[1739821559129,1.1154,2709.6,2709.5,0.7435773]
[1739821559328,1.1154,2709.6,2709.5,0.0055373]
[1739821559933,1.85341,2709.6,2709.5,0.0055373]
[1739821560525,1.1154,2709.6,2709.5,0.0055373]
[1739821560726,1.1154,2709.6,2709.5,0.7435773]
[1739821561028,0.0055373,2709.8,2709.7,0.73798]
[1739821561224,0.0055373,2709.8,2709.5,0.5872373]
[1739821561426,0.73801,2709.6,2709.5,0.0055373]
[1739821561630,5.56638961,2709.6,2709.5,0.0055373]
[1739821562134,0.73817,2709.1,2708.7,1.5386]
[1739821562329,0.73815,2709.1,2708.7,1.5386]
[1739821562530,0.73815,2709.1,2708.8,0.73823]
[1739821562826,0.5545,2709.1,2708.7,1.1621]
[1739821563021,0.73819,2709.0,2708.7,1.1621]
[1739821563222,1.29267,2709.1,2708.8,0.73823]
[1739821563431,1.29267,2709.1,2708.7,1.1621]
[1739821563432,0.5545,2709.1,2708.7,1.1621]
[1739821563628,0.7382,2708.9,2708.7,0.73824]
[1739821563824,0.73822,2708.9,2708.6,3.9516073]
[1739821564022,3.2078,2708.9,2708.6,0.0055373]
[1739821564226,0.5724,2708.8,2708.6,0.0055373]
[1739821564530,4.82837961,2708.7,2707.7,3.2078]
[1739821564729,5.56664961,2708.7,2708.3,0.73836]
[1739821564925,0.5553,2708.6,2708.3,3.2078]
[1739821565232,0.5724,2708.8,2708.3,3.2078]
[1739821565429,0.5724,2708.8,2708.4,0.73834]
[1739821565622,0.5779373,2708.8,2708.6,3.94608]
[1739821565821,0.5779373,2708.8,2708.3,3.2133373]
[1739821566026,0.0055373,2708.8,2708.7,0.73826]
[1739821567040,0.5482,2709.2,2709.1,0.73815]
[1739821567229,0.5482,2709.2,2709.1,3.94595]
[1739821567425,1.28658,2709.4,2709.1,3.94593]
[1739821567936,0.5485,2709.4,2709.2,0.73811]
[1739821568129,0.5485,2709.4,2709.1,3.2078]
[1739821568330,0.5485,2709.4,2708.8,3.2078]
[1739821568732,0.5537373,2709.5,2709.3,0.73809]
[1739821569032,0.5537373,2709.5,2709.1,3.2078]
[1739821569033,0.0055373,2709.5,2709.4,0.73807]
[1739821569633,0.0055373,2709.5,2709.4,3.94587]
[1739821569936,0.5709,2710.0,2709.4,3.49776474]
[1739821570136,0.5577,2710.4,2709.8,3.2078]
[1739821570337,0.5577,2710.4,2710.2,0.73782]
[1739821570537,0.73783,2710.3,2709.8,3.2078]
[1739821570728,0.5577,2710.4,2709.8,3.2078]
[1739821571130,0.5577,2710.4,2710.0,0.73788]
[1739821571131,1.3010373,2710.4,2710.0,0.73788]
[1739821571338,0.5632373,2710.4,2709.8,3.2133373]
[1739821571529,0.73786,2710.2,2709.8,3.9512773]
[1739821571939,0.73786,2710.2,2709.9,0.73793]
[1739821572438,0.73786,2710.2,2709.8,3.9512773]
[1739821572637,1.3010473,2710.4,2710.0,0.73788]
[1739821572840,0.73782,2710.3,2709.8,3.2133373]
[1739821573037,0.73786,2710.2,2709.8,3.9512773]
[1739821573233,0.73786,2710.2,2709.9,0.73792]
[1739821573433,0.5632373,2710.4,2709.9,0.73792]
[1739821573634,0.5632373,2710.4,2709.8,3.2133373]
[1739821574334,1.3010473,2710.4,2709.8,3.2133373]
[1739821574533,0.5632373,2710.4,2710.1,0.73785]
[1739821575143,0.5632373,2710.4,2710.2,0.73785]
[1739821576336,0.5632373,2710.4,2710.2,0.73784]
[1739821576743,1.3010473,2710.4,2710.1,0.73786]
[1739821577137,0.5632373,2710.4,2710.2,0.73784]
[1739821577443,0.5632373,2710.4,2710.3,0.73782]
[1739821578142,1.3010473,2710.4,2710.2,0.73785]
[1739821578341,1.3010473,2710.4,2710.3,0.73782]
[1739821578342,0.5632373,2710.4,2710.3,0.73782]
[1739821578753,0.5632373,2710.4,2710.3,3.94562]
[1739821578754,0.0055373,2710.4,2710.3,3.94562]
[1739821579545,1.46070001,2711.1,2711.0,0.73763]
[1739821579546,1.0911,2711.1,2711.0,0.73763]
[1739821579838,1.0911,2711.1,2710.9,0.73765]
[1739821579839,1.82871,2711.1,2710.9,0.73765]
[1739821580040,1.0911,2711.1,2710.8,3.2078]
[1739821580243,1.0911,2711.1,2711.0,0.73763]
[1739821581538,0.0055373,2711.3,2711.2,0.73758]
[1739821582542,0.0055373,2711.3,2711.2,3.94538]
[1739821583244,0.0055373,2711.3,2711.2,8.77375961]
[1739821584548,7.3e-06,2711.3,2711.2,14.77375961]
[1739821584744,0.5667,2712.4,2712.1,0.73732]
[1739821584945,0.73729,2712.3,2712.0,0.73734]
[1739821585552,0.73729,2712.3,2711.9,3.2078]
[1739821585553,0.5667,2712.4,2711.9,3.2078]
[1739821585749,0.73732,2712.2,2712.0,0.73735]
[1739821585955,0.5722373,2712.4,2711.9,3.2078]
[1739821586151,0.73732,2712.2,2711.9,3.2078]
[1739821586650,0.5722373,2712.4,2711.8,0.0055373]
[1739821586851,0.73737,2712.0,2711.8,0.0055373]
[1739821587047,3.2078,2712.3,2711.8,0.0055373]
[1739821587248,1.3095073,2712.4,2712.0,0.73734]
[1739821587443,1.3094973,2712.4,2712.0,0.73735]
[1739821587952,0.73728,2712.3,2712.0,0.73735]
[1739821588153,0.73729,2712.3,2712.0,0.73733]
[1739821588354,0.5722373,2712.4,2711.9,3.7548]
[1739821588651,0.73734,2712.1,2711.9,4.49217]
[1739821588854,0.5722373,2712.4,2712.1,0.73731]
[1739821589154,0.5722373,2712.4,2712.3,0.73728]
[1739821589155,0.0055373,2712.4,2712.3,0.73728]
[1739821590155,0.0055373,2712.4,2711.9,3.7548]
[1739821590356,0.7373,2712.3,2712.1,0.73733]
[1739821590659,0.5624373,2712.4,2711.9,3.7548]
[1739821590847,0.73728,2712.3,2711.9,3.7548]
[1739821591450,0.73728,2712.3,2712.2,0.7373]
[1739821591953,0.73728,2712.3,2711.9,3.7548]
[1739821591954,0.5624373,2712.4,2711.9,3.7548]
[1739821592255,0.73732,2712.2,2712.1,0.73733]
[1739821592553,0.5624373,2712.4,2712.3,0.73728]
[1739821593552,0.5624373,2712.4,2712.2,3.2078]
[1739821593757,1.2996873,2712.4,2712.3,0.73728]
[1739821593955,0.73728,2712.3,2712.2,3.94509]
[1739821594255,0.5624373,2712.4,2712.2,3.2078]
[1739821594443,1.2997073,2712.4,2712.3,0.73728]
[1739821594647,0.5624373,2712.4,2712.3,0.73728]
[1739821595251,1.2996873,2712.4,2712.3,0.73728]
[1739821596350,0.5624373,2712.4,2712.2,3.2078]
[1739821596550,1.2997073,2712.4,2712.3,0.73728]
[1739821596749,0.5624373,2712.4,2712.3,0.73728]
[1739821597355,0.0055373,2712.4,2712.3,0.73728]
[1739821598053,0.73728,2712.3,2712.2,3.2078]
[1739821598259,0.7428073,2712.4,2712.2,3.2078]
[1739821598458,0.73728,2712.3,2712.2,3.2078]
[1739821598662,1.80598,2712.3,2712.2,3.2078]
[1739821598860,1.80598,2712.3,2712.2,3.9451]
[1739821600156,1.0687,2712.3,2712.2,3.9451]
[1739821600662,1.80598,2712.3,2712.2,3.9451]
[1739821605657,1.0687,2712.3,2712.2,3.9451]
[1739821605863,1.80598,2712.3,2712.2,3.9451]
[1739821606757,1.0687,2712.3,2712.2,3.9451]
[1739821606958,1.80598,2712.3,2712.2,0.7373]
[1739821609076,1.0687,2712.3,2711.9,5.59823]
[1739821609375,0.73733,2712.2,2712.1,0.73731]
[1739821609968,1.0687,2712.3,2711.9,5.59823]
[1739821610170,0.73736,2712.0,2711.9,3.2078]
[1739821610475,0.73736,2712.0,2711.9,3.94518]
[1739821610674,0.73736,2712.0,2711.9,3.2078]
[1739821611074,1.0687,2712.3,2712.2,0.7373]
[1739821611369,1.0687,2712.3,2712.1,0.73732]
[1739821611370,1.80598,2712.3,2712.1,0.73732]
[1739821611776,1.80598,2712.3,2711.9,4.6844]
[1739821611984,1.0687,2712.3,2712.2,0.7373]
[1739821612879,1.0687,2712.3,2712.2,3.9451]
[1739821615879,0.0055373,2712.4,2712.3,0.73728]
[1739821616972,0.73728,2712.3,2712.2,3.9451]
[1739821617173,1.1281373,2712.4,2712.3,0.73728]
[1739821617571,0.0055373,2712.4,2712.3,0.73728]
[1739821618376,0.0055373,2712.4,2712.3,2.3395634]
[1739821618578,0.0055373,2712.4,2712.3,0.73728]
[1739821620677,0.0055373,2712.4,2712.3,1.6022834]
[1739821620877,0.7427873,2712.4,2712.3,0.73728]
[1739821621284,0.0055373,2712.4,2712.3,0.73728]
[1739821621482,0.0055373,2712.4,2712.3,2.3395634]
[1739821622381,0.0055373,2712.4,2712.3,0.73728]
[1739821622576,0.5622373,2712.4,2712.3,0.73728]
[1739821624583,0.0055373,2712.4,2712.3,0.73728]
[1739821628189,7.3e-06,2712.4,2712.3,6.73728]
[1739821628382,7.3e-06,2712.4,2712.3,8.3395634]
[1739821628582,7.3e-06,2712.4,2712.3,2.3395634]
[1739821628782,7.3e-06,2712.4,2712.3,3.64327064]
[1739821629081,7.3e-06,2712.4,2712.3,9.64327064]
[1739821629487,0.73699,2713.4,2712.3,8.90599064]
[1739821629681,0.73699,2713.4,2713.2,0.73701]
[1739821629882,0.5284,2713.3,2713.2,0.73701]
[1739821630887,1.2654,2713.3,2713.2,0.73701]
[1739821631190,0.57445653,2713.5,2713.4,0.73698]
[1739821631386,0.00365653,2713.5,2713.4,0.73698]
[1739821632193,0.00365653,2713.5,2713.4,3.94478]
[1739821632391,0.00365653,2713.5,2713.4,3.2078]
[1739821632592,0.74060653,2713.5,2713.4,3.94478]
[1739821632891,0.00365653,2713.5,2713.4,3.94478]
[1739821633587,0.57969387,2713.7,2713.4,3.2078]
[1739821633795,0.57969387,2713.7,2713.6,0.73692]
[1739821633987,0.57969387,2713.7,2713.4,3.2078]
[1739821634492,0.57969387,2713.7,2713.6,0.73692]
[1739821635288,0.57969387,2713.7,2713.4,3.2078]
[1739821635587,3.84940362,2713.6,2713.2,0.0055373]
[1739821635792,0.5477,2713.5,2713.2,0.7425573]
[1739821636091,1.2787,2713.4,2713.2,0.7425573]
[1739821636290,0.5417,2713.4,2713.3,0.737]
[1739821636486,0.5417,2713.4,2713.2,0.0055373]
[1739821636487,0.737,2713.3,2713.2,0.7425573]
[1739821636794,0.737,2713.3,2713.2,0.7425673]
[1739821637586,0.5417,2713.4,2713.3,0.737]
[1739821638390,0.737,2713.3,2713.2,0.0055373]
[1739821638589,0.73714,2712.8,2712.5,3.2078]
[1739821638897,3.2078,2712.8,2712.3,0.73725]
[1739821639095,0.7372,2712.6,2712.3,0.73725]
[1739821639388,1.27108,2712.7,2712.4,0.73724]
[1739821639594,0.5339,2712.7,2712.5,0.73721]
[1739821639985,1.27108,2712.7,2712.5,0.73721]
[1739821640290,0.5339,2712.7,2712.3,0.0055373]
[1739821640487,0.73721,2712.6,2712.3,0.0055373]
[1739821640791,0.5339,2712.7,2712.6,0.73719]
[1739821641689,1.6572,2712.7,2712.3,0.0055373]
[1739821641988,0.7372,2712.6,2712.4,0.73724]
[1739821642196,0.73725,2712.4,2712.3,0.0055373]
[1739821642898,3.94505,2712.4,2712.3,0.0055373]